[Event "4NCL 2nd Div 2023-24"]
[Site "Daventry"]
[Date "2024.05.04"]
[Round "9.11"]
[White "Nicholas, Koichi B"]
[Black "Hryshchenko, Kamila"]
[Result "0-1"]
[ECO "B06"]
[WhiteElo "2145"]
[BlackElo "2146"]
[Annotator "RC"]
[PlyCount "140"]
[EventDate "2023.11.11"]
[EventType "team-tourn"]
[EventCountry "ENG"]
[SourceTitle "playchess.com"]
[Source "ChessBase"]
[SourceQuality "1"]
[TimeControl "40/6000+30:3000+30"]

1. e4 {[%emt 0:04:31]} d6 {[%emt 0:00:20]} 2. d4 {[%emt 0:00:14]} g6 {[%emt 0:00:05]} 3. Nc3 {[%emt 0:00:30]} Bg7 {[%emt 0:00:10]} 4. Be3 {[%emt 0:00:30]} c6 {[%emt 0:00:14]} 5. Qd2 {[%emt 0:01:43]} b5 {[%emt 0:01:06]} 6. Bd3 {[%emt 0:01:11]} Nd7 {[%emt 0:00:55]} 7. Nf3 {[%emt 0:01:02]} a6 {[%emt 0:08:31]} 8. O-O {[%emt 0:02:40]} Qc7 {[%emt 0:04:23]} 9. Rfe1 {[%emt 0:15:41]} e5 {[%emt 0:05:17]} 10. dxe5 {[%emt 0:01:33]} dxe5 {[%emt 0:00:20]} 11. a4 {[%emt 0:01:13]} b4 {[%emt 0:03:34]} 12. Na2 {[%emt 0:06:52]} c5 {[%emt 0:05:22]} 13. b3 {[%emt 0:04:59]} Ngf6 {[%emt 0:11:44]} 14. c3 {[%emt 0:05:14]} bxc3 {[%emt 0:13:18]} 15. Qxc3 {[%emt 0:01:13]} Bb7 {[%emt 0:00:51]} 16. Nd2 {[%emt 0:18:21]} O-O {[%emt 0:04:00]} 17. Rac1 {[%emt 0:01:51]} Rfd8 {[%emt 0:03:05]} 18. b4 {[%emt 0:06:05]} Qd6 {[%emt 0:01:56]} 19. Nc4 {[%emt 0:08:24]} Qe7 {[%emt 0:02:44]} 20. f3 {[%emt 0:05:15]} Nh5 {[%emt 0:14:03]} 21. Na5 {[%emt 0:06:48]} Nf8 {[%emt 0:21:03]} 22. bxc5 {[%emt 0:04:18]} Ne6 {[%emt 0:00:20]} 23. Nb4 {[%emt 0:03:08]} Nhf4 {[%emt 0:02:39]} 24. Bf1 {[%emt 0:01:23]} Nd4 {[%emt 0:02:53]} 25. Qc4 {[%emt 0:02:30]} Bf8 {[%emt 0:02:43]} 26. Bxf4 {[%emt 0:05:23]} exf4 {[%emt 0:00:03]} 27. Nd5 {[%emt 0:00:10]} Bxd5 {[%emt 0:00:45]} 28. exd5 {[%emt 0:00:03]} Qf6 {[%emt 0:00:16]} 29. Rcd1 {[%emt 0:00:58]} Nf5 {[%emt 0:00:49]} 30. d6 {[%emt 0:01:13]} Rac8 {[%emt 0:00:42]} 31. Nb3 {[%emt 0:00:23]} Bxd6 {[%emt 0:00:14]} 32. Rc1 {[%emt 0:00:28]} Be5 {[%emt 0:00:51]} 33. Kh1 {[%emt 0:00:08]} Rc6 {[%emt 0:00:51]} 34. Bd3 {[%emt 0:00:40]} Ne3 {[%emt 0:00:21]} 35. Qe4 {[%emt 0:00:38]} Re6 {[%emt 0:00:40]} 36. Bc4 {[%emt 0:00:27]} Ree8 {[%emt 0:00:11]} 37. Qb7 {[%emt 0:00:38]} Rb8 {[%emt 0:00:40]} 38. Qxa6 {[%emt 0:00:37]} Qxa6 {[%emt 0:00:53]} 39. Bxa6 {[%emt 0:00:03]} Rxb3 {[%emt 0:00:05]} 40. c6 {[%emt 0:00:36]} Bc7 {[%emt 0:00:15]} 41. g3 {[%emt 0:50:51]} g5 {[%emt 0:01:47]} 42. gxf4 {[%emt 0:00:00]} gxf4 {[%emt 0:00:21]} 43. Bb7 {[%emt 0:00:00]} Ra3 {[%emt 0:05:27]} 44. Ra1 {[%emt 0:00:00]} Rxa1 {[%emt 0:00:03]} 45. Rxa1 {[%emt 0:00:00]} Re5 {[%emt 0:04:29]} 46. Ba6 {[%emt 0:00:00]} Rc5 {[%emt 0:00:12]} 47. Bb5 {[%emt 0:00:00]} Ba5 {[%emt 0:00:07]} 48. Rg1+ {[%emt 0:00:00]} Kf8 {[%emt 0:00:09]} 49. Bd3 {[%emt 0:00:00]} h6 {[%emt 0:00:57]} 50. Bb5 {[%emt 0:00:00]} Ke7 {[%emt 0:01:00]} 51. Ra1 {[%emt 0:00:00]} Kf6 {[%emt 0:00:56]} 52. Kg1 {[%emt 0:00:00]} Ke5 {[%emt 0:02:07]} 53. Ra2 {[%emt 0:00:00]} Rc1+ {[%emt 0:01:37]} 54. Kf2 {[%emt 0:00:00]} Rc2+ {[%emt 0:00:40]} 55. Rxc2 {[%emt 0:00:00]} Nxc2 {[%emt 0:00:02]} 56. Bc4 {[%emt 0:00:00]} Bb6+ {[%emt 0:00:53]} 57. Ke2 {[%emt 0:00:00]} Nd4+ {[%emt 0:00:03]} 58. Kf2 {[%emt 0:00:00]} Nxc6+ {[%emt 0:00:10]} 59. Kg2 {[%emt 0:00:00]} f5 {[%emt 0:00:50]} 60. Ba6 {[%emt 0:00:00]} Nd4 {[%emt 0:03:24]} 61. Bb7 {[%emt 0:00:00]} Kd6 {[%emt 0:01:22]} 62. Kh3 {[%emt 0:00:00]} Ke5 {[%emt 0:03:38]} 63. Kh4 {[%emt 0:00:00]} Kf6 {[%emt 0:00:05]} 64. Kh5 {[%emt 0:00:00]} Kg7 {[%emt 0:00:03]} 65. Bd5 {[%emt 0:00:00]} Bd8 {[%emt 0:00:18]} 66. Bb7 {[%emt 0:00:00]} Ba5 {[%emt 0:02:39]} 67. Bd5 {[%emt 0:00:00]} Bb4 {[%emt 0:00:17]} 68. Bb7 {[%emt 0:00:00]} Be1 {[%emt 0:00:04]} 69. Ba8 {[%emt 0:00:00]} Ne6 {[%emt 0:01:01]} 70. Bd5 {[%emt 0:00:00]} Nf8 {[%emt 0:00:25]} 0-1

[Event "4NCL 2nd Div 2023-24"]
[Site "Daventry"]
[Date "2024.05.04"]
[Round "9.12"]
[White "Price, Gwilym"]
[Black "Wilks, Simon"]
[Result "1-0"]
[ECO "C03"]
[WhiteElo "2195"]
[BlackElo "2031"]
[Annotator "RC"]
[PlyCount "65"]
[EventDate "2023.11.11"]
[EventType "team-tourn"]
[EventCountry "ENG"]
[SourceTitle "playchess.com"]
[Source "ChessBase"]
[SourceQuality "1"]
[TimeControl "40/6000+30:3000+30"]

1. e4 {[%emt 0:00:02]} e6 {[%emt 0:03:22]} 2. d4 {[%emt 0:00:08]} d5 {[%emt 0:00:04]} 3. Nd2 {[%emt 0:00:04]} h6 {[%emt 0:00:55]} 4. Ngf3 {[%emt 0:00:36]} Nf6 {[%emt 0:01:08]} 5. e5 {[%emt 0:00:05]} Nfd7 {[%emt 0:00:04]} 6. c3 {[%emt 0:00:09]} c5 {[%emt 0:01:15]} 7. Bd3 {[%emt 0:00:06]} Nc6 {[%emt 0:00:13]} 8. Bc2 {[%emt 0:00:04]} a5 {[%emt 0:15:27]} 9. a4 {[%emt 0:12:47]} b6 {[%emt 0:14:06]} 10. O-O {[%emt 0:29:24]} cxd4 {[%emt 0:16:13]} 11. cxd4 {[%emt 0:00:28]} g5 {[%emt 0:02:49]} 12. Nb3 {[%emt 0:02:05]} Bg7 {[%emt 0:03:48]} 13. Ne1 {[%emt 0:09:25]} Ba6 {[%emt 0:08:43]} 14. Bd3 {[%emt 0:00:46]} Bxd3 {[%emt 0:09:54]} 15. Nxd3 {[%emt 0:00:28]} O-O {[%emt 0:01:38]} 16. f4 {[%emt 0:04:49]} f6 {[%emt 0:04:00]} 17. fxg5 {[%emt 0:14:53]} fxg5 {[%emt 0:02:24]} 18. Qg4 {[%emt 0:00:24]} Rxf1+ {[%emt 0:00:49]} 19. Kxf1 {[%emt 0:00:05]} Qf8+ {[%emt 0:00:09]} 20. Kg1 {[%emt 0:00:16]} Qf5 {[%emt 0:00:43]} 21. Qxf5 {[%emt 0:01:25]} exf5 {[%emt 0:00:05]} 22. h4 {[%emt 0:01:42]} gxh4 {[%emt 0:11:27]} 23. Bd2 {[%emt 0:01:13]} Rc8 {[%emt 0:04:14]} 24. Rc1 {[%emt 0:07:22]} Ne7 {[%emt 0:00:55]} 25. Rxc8+ {[%emt 0:00:22]} Nxc8 {[%emt 0:00:04]} 26. Be1 {[%emt 0:08:29]} Nf8 {[%emt 0:02:59]} 27. Nf4 {[%emt 0:00:26]} Kf7 {[%emt 0:04:17]} 28. Nxd5 {[%emt 0:00:59]} Ne6 {[%emt 0:00:06]} 29. Bxh4 {[%emt 0:01:45]} Nxd4 {[%emt 0:00:44]} 30. Nxd4 {[%emt 0:00:09]} Bxe5 {[%emt 0:00:05]} 31. Bf2 {[%emt 0:00:53]} f4 {[%emt 0:00:29]} 32. b3 {[%emt 0:00:29]} Nd6 {[%emt 0:01:02]} 33. Nf3 {[%emt 0:01:29]} 1-0

[Event "4NCL 2nd Div 2023-24"]
[Site "Daventry"]
[Date "2024.05.04"]
[Round "9.13"]
[White "Waller, Dan"]
[Black "Bremner, Adam"]
[Result "1-0"]
[ECO "C29"]
[WhiteElo "2094"]
[BlackElo "2187"]
[Annotator "RC"]
[PlyCount "137"]
[EventDate "2023.11.11"]
[EventType "team-tourn"]
[EventCountry "ENG"]
[SourceTitle "playchess.com"]
[Source "ChessBase"]
[SourceQuality "1"]
[TimeControl "40/6000+30:3000+30"]

1. e4 {[%emt 0:00:04]} e5 {[%emt 0:00:34]} 2. Nc3 {[%emt 0:01:46]} Nf6 {[%emt 0:00:20]} 3. f4 {[%emt 0:00:05]} d5 {[%emt 0:00:51]} 4. fxe5 {[%emt 0:00:04]} Nxe4 {[%emt 0:00:10]} 5. Qf3 {[%emt 0:00:03]} Nc6 {[%emt 0:00:29]} 6. Bb5 {[%emt 0:00:04]} Nxc3 {[%emt 0:00:10]} 7. dxc3 {[%emt 0:00:03]} Qh4+ {[%emt 0:00:12]} 8. g3 {[%emt 0:00:03]} Qe4+ {[%emt 0:00:06]} 9. Qxe4 {[%emt 0:00:03]} dxe4 {[%emt 0:00:07]} 10. Ne2 {[%emt 0:00:31]} Bd7 {[%emt 0:00:18]} 11. Bxc6 {[%emt 0:00:05]} Bxc6 {[%emt 0:00:05]} 12. Rf1 {[%emt 0:00:06]} Be7 {[%emt 0:00:16]} 13. Nd4 {[%emt 0:00:17]} Bd7 {[%emt 0:00:12]} 14. Rf4 {[%emt 0:08:59]} O-O {[%emt 0:01:59]} 15. Rxe4 {[%emt 0:01:28]} Rae8 {[%emt 0:05:11]} 16. Bf4 {[%emt 0:07:23]} c5 {[%emt 0:20:15]} 17. Nf3 {[%emt 0:11:09]} h6 {[%emt 0:21:54]} 18. h4 {[%emt 0:02:30]} Bf5 {[%emt 0:05:12]} 19. Re2 {[%emt 0:04:44]} Bd8 {[%emt 0:01:01]} 20. Kf2 {[%emt 0:21:23]} Re6 {[%emt 0:51:08]} 21. Rae1 {[%emt 0:16:28]} Rfe8 {[%emt 0:00:00]} 22. Rd2 {[%emt 0:00:51]} Bc7 {[%emt 0:00:00]} 23. Rd7 {[%emt 0:04:54]} Rc8 {[%emt 0:00:00]} 24. Rd2 {[%emt 0:03:03]} Rce8 {[%emt 0:00:00]} 25. c4 {[%emt 0:00:50]} R6e7 {[%emt 0:00:00]} 26. c3 {[%emt 0:01:05]} Bg4 {[%emt 0:00:00]} 27. Nh2 {[%emt 0:00:37]} Be6 {[%emt 0:00:00]} 28. b3 {[%emt 0:00:04]} Bd7 {[%emt 0:00:00]} 29. Nf3 {[%emt 0:00:51]} Bg4 {[%emt 0:00:00]} 30. Nh2 {[%emt 0:01:25]} Bd7 {[%emt 0:00:00]} 31. Nf3 {[%emt 0:06:32]} Bg4 {[%emt 0:00:00]} 32. Re3 {[%emt 0:00:48]} Kf8 {[%emt 0:00:00]} 33. Nh2 {[%emt 0:00:42]} Bd7 {[%emt 0:00:00]} 34. Red3 {[%emt 0:01:56]} Bf5 {[%emt 0:00:00]} 35. Re3 {[%emt 0:01:46]} b6 {[%emt 0:00:00]} 36. Nf3 {[%emt 0:01:20]} Bg4 {[%emt 0:00:00]} 37. Rd5 {[%emt 0:01:26]} Be6 {[%emt 0:00:00]} 38. Rd1 {[%emt 0:02:03]} Bg4 {[%emt 0:00:00]} 39. Rd5 {[%emt 0:04:51]} Be6 {[%emt 0:00:00]} 40. Rd2 {[%emt 0:00:04]} Bg4 {[%emt 0:00:00]} 41. Nh2 {[%emt 0:50:19]} Bc8 {[%emt 0:35:24]} 42. Rde2 {[%emt 0:00:23]} g5 {[%emt 0:11:18]} 43. hxg5 {[%emt 0:00:54]} hxg5 {[%emt 0:00:06]} 44. Bxg5 {[%emt 0:00:07]} Rxe5 {[%emt 0:00:10]} 45. Bh6+ {[%emt 0:03:33]} Kg8 {[%emt 0:00:17]} 46. Bf4 {[%emt 0:00:33]} Rxe3 {[%emt 0:00:22]} 47. Rxe3 {[%emt 0:00:04]} Rxe3 {[%emt 0:00:23]} 48. Kxe3 {[%emt 0:00:05]} Bxf4+ {[%emt 0:00:25]} 49. Kxf4 {[%emt 0:00:08]} f6 {[%emt 0:00:37]} 50. Nf1 {[%emt 0:06:17]} Bd7 {[%emt 0:07:01]} 51. Ne3 {[%emt 0:00:00]} Kg7 {[%emt 0:00:00]} 52. Nd5 {[%emt 0:00:00]} Be8 {[%emt 0:00:00]} 53. Nc7 {[%emt 0:00:00]} Bg6 {[%emt 0:00:00]} 54. b4 {[%emt 0:00:00]} Bd3 {[%emt 0:00:00]} 55. bxc5 {[%emt 0:00:00]} Bxc4 {[%emt 0:00:00]} 56. cxb6 {[%emt 0:00:00]} axb6 {[%emt 0:00:00]} 57. a3 {[%emt 0:00:00]} Kf7 {[%emt 0:12:27]} 58. Na8 {[%emt 0:00:00]} b5 {[%emt 0:00:00]} 59. Nb6 {[%emt 0:00:00]} Bd3 {[%emt 0:00:00]} 60. Ke3 {[%emt 0:00:00]} Bf1 {[%emt 0:00:00]} 61. Kd4 {[%emt 0:00:00]} Ke6 {[%emt 0:00:00]} 62. Nd5 {[%emt 0:00:00]} Bc4 {[%emt 0:00:00]} 63. Ne3 {[%emt 0:00:00]} Be2 {[%emt 0:00:00]} 64. Nd5 {[%emt 0:00:00]} Bc4 {[%emt 0:00:00]} 65. Nf4+ {[%emt 0:00:00]} Kf5 {[%emt 0:00:00]} 66. a4 {[%emt 0:00:00]} Bf1 {[%emt 0:00:00]} 67. a5 {[%emt 0:00:00]} b4 {[%emt 0:00:00]} 68. cxb4 {[%emt 0:00:00]} Kg4 {[%emt 0:00:00]} 69. Nd5 {[%emt 0:00:00]} 1-0

[Event "4NCL 2nd Div 2023-24"]
[Site "Daventry"]
[Date "2024.05.04"]
[Round "9.14"]
[White "Foisor, Mihaela-Veronica"]
[Black "Skettos, Nicolas"]
[Result "1/2-1/2"]
[ECO "A25"]
[WhiteElo "2178"]
[BlackElo "2014"]
[Annotator "NA"]
[PlyCount "84"]
[EventDate "2023.11.11"]
[EventType "team-tourn"]
[EventCountry "ENG"]
[SourceTitle "playchess.com"]
[Source "ChessBase"]
[SourceQuality "1"]
[TimeControl "40/6000+30:3000+30"]

1. c4 {[%emt 0:00:15]} e5 {[%emt 0:00:08]} 2. Nc3 {[%emt 0:00:04]} Nc6 {[%emt 0:00:42]} 3. g3 {[%emt 0:00:09]} Bc5 {[%emt 0:00:05]} 4. Bg2 {[%emt 0:00:18]} a6 {[%emt 0:00:10]} 5. e3 {[%emt 0:00:57]} d6 {[%emt 0:00:06]} 6. Nge2 {[%emt 0:00:13]} Ba7 {[%emt 0:00:09]} 7. d4 {[%emt 0:03:19]} exd4 {[%emt 0:10:37]} 8. exd4 {[%emt 0:01:47]} Nf6 {[%emt 0:00:28]} 9. O-O {[%emt 0:01:27]} O-O {[%emt 0:01:21]} 10. h3 {[%emt 0:01:54]} h6 {[%emt 0:04:35]} 11. a3 {[%emt 0:01:51]} Bf5 {[%emt 0:01:33]} 12. Kh2 {[%emt 0:07:57]} Re8 {[%emt 0:02:03]} 13. b4 {[%emt 0:01:43]} Qd7 {[%emt 0:02:25]} 14. Be3 {[%emt 0:06:50]} Nd8 {[%emt 0:16:56]} 15. Nf4 {[%emt 0:03:31]} c6 {[%emt 0:06:27]} 16. Re1 {[%emt 0:10:07]} Ne4 {[%emt 0:03:56]} 17. Qb3 {[%emt 0:12:57]} Nxc3 {[%emt 0:00:55]} 18. Qxc3 {[%emt 0:00:09]} Rc8 {[%emt 0:04:30]} 19. Qd2 {[%emt 0:15:57]} Ne6 {[%emt 0:06:26]} 20. Nxe6 {[%emt 0:01:23]} fxe6 {[%emt 0:01:56]} 21. c5 {[%emt 0:04:22]} Bb8 {[%emt 0:05:48]} 22. Rad1 {[%emt 0:01:25]} Qf7 {[%emt 0:03:14]} 23. cxd6 {[%emt 0:06:16]} Bxd6 {[%emt 0:00:09]} 24. Bf4 {[%emt 0:00:03]} Bxf4 {[%emt 0:00:58]} 25. Qxf4 {[%emt 0:00:12]} Bc2 {[%emt 0:00:38]} 26. Qxf7+ {[%emt 0:01:01]} Kxf7 {[%emt 0:00:02]} 27. Rd2 {[%emt 0:00:36]} Bb3 {[%emt 0:01:02]} 28. Re5 {[%emt 0:04:40]} Bd5 {[%emt 0:03:57]} 29. f4 {[%emt 0:00:21]} Rcd8 {[%emt 0:04:48]} 30. Be4 {[%emt 0:06:41]} Bxe4 {[%emt 0:00:50]} 31. Rxe4 {[%emt 0:02:19]} Rd5 {[%emt 0:03:07]} 32. Kg2 {[%emt 0:01:44]} Red8 {[%emt 0:02:24]} 33. Kf3 {[%emt 0:00:20]} g6 {[%emt 0:01:55]} 34. Ke3 {[%emt 0:02:56]} a5 {[%emt 0:02:20]} 35. Re5 {[%emt 0:04:00]} axb4 {[%emt 0:00:53]} 36. axb4 {[%emt 0:00:03]} Ra8 {[%emt 0:00:35]} 37. Rxd5 {[%emt 0:03:28]} exd5 {[%emt 0:06:11]} 38. Rd3 {[%emt 0:00:34]} Ra2 {[%emt 0:01:45]} 39. Rb3 {[%emt 0:00:49]} Rg2 {[%emt 0:00:35]} 40. Kf3 {[%emt 0:00:23]} Rd2 {[%emt 0:00:05]} 41. Ke3 {[%emt 0:51:46]} Rg2 {[%emt 0:52:05]} 42. Kf3 {[%emt 0:00:21]} Rd2 {[%emt 0:00:30]} 1/2-1/2

[Event "4NCL 2nd Div 2023-24"]
[Site "Daventry"]
[Date "2024.05.04"]
[Round "9.15"]
[White "Shepherd, Tom"]
[Black "Varnam, Liam D"]
[Result "0-1"]
[ECO "D27"]
[WhiteElo "1918"]
[BlackElo "2029"]
[Annotator "NA"]
[PlyCount "74"]
[EventDate "2023.11.11"]
[EventType "team-tourn"]
[EventCountry "ENG"]
[SourceTitle "playchess.com"]
[Source "ChessBase"]
[SourceQuality "1"]
[TimeControl "40/6000+30:3000+30"]

1. d4 {[%emt 0:00:02]} d5 {[%emt 0:00:05]} 2. Nf3 {[%emt 0:00:09]} Nf6 {[%emt 0:00:10]} 3. c4 {[%emt 0:00:05]} dxc4 {[%emt 0:00:07]} 4. e3 {[%emt 0:00:05]} e6 {[%emt 0:00:04]} 5. Bxc4 {[%emt 0:00:04]} c5 {[%emt 0:00:04]} 6. O-O {[%emt 0:00:06]} a6 {[%emt 0:00:04]} 7. b3 {[%emt 0:00:03]} b5 {[%emt 0:05:13]} 8. Be2 {[%emt 0:00:07]} Bb7 {[%emt 0:00:54]} 9. Bb2 {[%emt 0:00:06]} Nbd7 {[%emt 0:05:27]} 10. a4 {[%emt 0:00:21]} b4 {[%emt 0:02:36]} 11. Nbd2 {[%emt 0:00:06]} Be7 {[%emt 0:03:02]} 12. Nc4 {[%emt 0:00:17]} O-O {[%emt 0:00:21]} 13. Nfe5 {[%emt 0:00:03]} Nxe5 {[%emt 0:12:20]} 14. dxe5 {[%emt 0:00:53]} Nd5 {[%emt 0:10:00]} 15. Bf3 {[%emt 0:09:18]} Qc7 {[%emt 0:18:02]} 16. a5 {[%emt 0:07:35]} f5 {[%emt 0:05:49]} 17. Qc2 {[%emt 0:08:33]} g5 {[%emt 0:05:13]} 18. h3 {[%emt 0:08:44]} Rf7 {[%emt 0:15:08]} 19. Rad1 {[%emt 0:11:03]} Raf8 {[%emt 0:10:18]} 20. Rd2 {[%emt 0:08:56]} Ba8 {[%emt 0:11:16]} 21. Rfd1 {[%emt 0:18:32]} Rg7 {[%emt 0:01:30]} 22. Nd6 {[%emt 0:06:34]} Nc3 {[%emt 0:03:00]} 23. Bxc3 {[%emt 0:01:09]} Bxf3 {[%emt 0:00:29]} 24. gxf3 {[%emt 0:00:07]} bxc3 {[%emt 0:00:21]} 25. Qxc3 {[%emt 0:00:05]} g4 {[%emt 0:00:28]} 26. hxg4 {[%emt 0:07:55]} Qc6 {[%emt 0:00:54]} 27. e4 {[%emt 0:03:44]} fxg4 {[%emt 0:00:13]} 28. Qc4 {[%emt 0:00:43]} gxf3+ {[%emt 0:00:34]} 29. Kf1 {[%emt 0:01:21]} Kh8 {[%emt 0:00:39]} 30. Rd3 {[%emt 0:02:52]} Bxd6 {[%emt 0:00:28]} 31. exd6 {[%emt 0:16:22]} Qe8 {[%emt 0:00:35]} 32. Ke1 {[%emt 0:00:00]} Qh5 {[%emt 0:00:34]} 33. d7 {[%emt 0:00:00]} Qh6 {[%emt 0:00:27]} 34. Rxf3 {[%emt 0:00:00]} Qh1+ {[%emt 0:00:32]} 35. Qf1 {[%emt 0:00:00]} Qxf3 {[%emt 0:00:27]} 36. d8=Q {[%emt 0:02:30]} Qxe4+ {[%emt 0:00:15]} 37. Qe2 {[%emt 0:00:00]} Rg1+ {[%emt 0:00:17]} 0-1

[Event "4NCL 2nd Div 2023-24"]
[Site "Daventry"]
[Date "2024.05.04"]
[Round "9.16"]
[White "McCarthy, Kevin C"]
[Black "Frank, Tena"]
[Result "1/2-1/2"]
[ECO "D00"]
[WhiteElo "1978"]
[BlackElo "1956"]
[Annotator "NA"]
[PlyCount "49"]
[EventDate "2023.11.11"]
[EventType "team-tourn"]
[EventCountry "ENG"]
[SourceTitle "playchess.com"]
[Source "ChessBase"]
[SourceQuality "1"]
[TimeControl "40/6000+30:3000+30"]

1. d4 {[%emt 0:00:19]} d5 {[%emt 0:00:08]} 2. Nc3 {[%emt 0:01:25]} Nf6 {[%emt 0:00:27]} 3. Bf4 {[%emt 0:07:23]} e6 {[%emt 0:00:24]} 4. e3 {[%emt 0:00:12]} Bb4 {[%emt 0:06:06]} 5. Bd3 {[%emt 0:01:26]} c5 {[%emt 0:00:58]} 6. dxc5 {[%emt 0:11:29]} Nbd7 {[%emt 0:10:28]} 7. Bd6 {[%emt 0:21:42]} Nxc5 {[%emt 0:11:02]} 8. Bxc5 {[%emt 0:02:27]} Bxc5 {[%emt 0:00:19]} 9. Nf3 {[%emt 0:01:47]} O-O {[%emt 0:02:50]} 10. O-O {[%emt 0:00:41]} a6 {[%emt 0:15:25]} 11. e4 {[%emt 0:05:25]} dxe4 {[%emt 0:07:27]} 12. Nxe4 {[%emt 0:01:35]} Be7 {[%emt 0:01:20]} 13. c3 {[%emt 0:03:21]} b5 {[%emt 0:01:46]} 14. Qc2 {[%emt 0:05:43]} h6 {[%emt 0:01:31]} 15. Rad1 {[%emt 0:01:31]} Nd5 {[%emt 0:07:42]} 16. Ng3 {[%emt 0:05:33]} Bb7 {[%emt 0:02:00]} 17. Be4 {[%emt 0:05:56]} Qb6 {[%emt 0:03:18]} 18. Ne5 {[%emt 0:05:10]} Qc7 {[%emt 0:10:37]} 19. Rfe1 {[%emt 0:02:34]} Rac8 {[%emt 0:02:23]} 20. Nf3 {[%emt 0:03:07]} Rfd8 {[%emt 0:01:49]} 21. Nd4 {[%emt 0:01:51]} Qb6 {[%emt 0:01:16]} 22. Qe2 {[%emt 0:04:36]} Nf4 {[%emt 0:09:59]} 23. Qf3 {[%emt 0:00:53]} Bxe4 {[%emt 0:01:10]} 24. Qxe4 {[%emt 0:02:14]} Nd5 {[%emt 0:00:46]} 25. Nf3 {[%emt 0:03:57]} 1/2-1/2